Cogmind - Beta 15 @@@ ROGUE MODE // 2025.07.09 @ 22:58:30 Player: Cracklepappy Result: Self-destructed Performance ------------- Evolutions (8) 4000 Regions Visited (20) 4000 Robots Destroyed (164) 820 Value Destroyed (5928) 5928 Prototype IDs (59) 1180 Alien Tech Used (2) 400 Bonus (2292) 2292 TOTAL SCORE: 18620 Bonus ------- High Alert Combat Kills 458 Follower Combat Kills 396 Registered with UFD 300 Met Optimus in HQ 500 Met Zhirov 300 Met Warlord at Base 500 MAIN.C Attacked Warlord 500 Friendly Fire -662 Cogmind --------- Core Integrity 1027/1450 Matter 88/300 Energy 150/150 System Corruption 5% Temperature Cool (0) Movement Flying (99) Ox1 Location -2/Testing Parts ------- > --- POWER (1) -------- Micro Antimatter Reactor > --- PROPULSION (8) --- Improved Diametric Drive Cooled Impulse Thruster > --- UTILITY (8) ------ Enhanced Optical Array Advanced Launcher Guidance Computer Improved Target Analyzer Improved Target Analyzer Graphene Brace Advanced Hacking Suite > --- WEAPON (6) ------- Gravity Flail Gravity Flail > --- INVENTORY (5) ---- Matter Drive Dimensional Node Initializer Transdimensional Reconstructor Subatomic Replicator Improved Plasma Cutter Peak State ------------ > --- POWER ------------ Micro Antimatter Reactor > --- PROPULSION ------- Field Propulsion Array Field Propulsion Array Q-thruster Electron Diverter Improved Diametric Drive Cooled Impulse Thruster > --- UTILITY ---------- Advanced Power Amplifier Enhanced Optical Array Advanced Targeting Computer Advanced Launcher Guidance Computer Improved Target Analyzer Improved Target Analyzer Graphene Brace Advanced Hacking Suite > --- WEAPON ----------- Heavy Machine Gun Heavy Machine Gun Fusion Bomb Launcher Gravity Flail Sigix Broadsword > --- INVENTORY -------- Matter Drive Dimensional Node Initializer Transdimensional Reconstructor Subatomic Replicator Improved Plasma Cutter [Rating: 177] Favorites ----------- Power Ion Engine Engine Ion Engine Power Core Micro Fission Core Reactor Micro Antimatter Reactor Propulsion Light Treads Treads Light Treads Leg Enhanced Flexi-carbon Leg Wheel Armored Huge Wheel Hover Unit Improved Antigrav System Flight Unit Cooled Nuclear Pulse Thruster Utility Medium Storage Unit Device V3-11A's Pendant Storage Medium Storage Unit Processor Core Analyzer Hackware Improved System Shield Protection Tower Shield Weapon Makeshift Hammer Energy Gun Subdweller Laser Energy Cannon Plasma Cannon Ballistic Gun Assault Rifle Ballistic Cannon Gauss Cannon Launcher Grenade Launcher Special Weapon CPS Tube Impact Weapon Makeshift Hammer Slashing Weapon Greatsword Piercing Weapon Lance Special Melee Weapon Advanced Datajack Build | -11 -10 -10 -10 -7 -5 -5 -5 -5 -5 -5 -4 -4 -4 -4 -4 -3 -3 -3 -2 -2 ------- Run | Yrd Mat Min Sub Scr Fac Was Fac Upp Upp War Pro Fac Upp Upp Zhi Pro Res Qua Res Tes Slots Evolved 16 | . . . . . 10 . . . . . . 2 . . . . 2 . 2 . Power . | . . . . . . . . . . . . . . . . . . . . . Propulsion 6 | . . . . . 2 . . . . . . 2 . . . . 2 . . . Utility 6 | . . . . . 4 . . . . . . . . . . . . . 2 . Weapon 4 | . . . . . 4 . . . . . . . . . . . . . . . Parts Attached 200 | 8 10 . 13 17 44 15 14 3 1 18 1 19 2 1 5 . 8 11 10 . Power 16 | 1 2 . 1 4 2 2 . . . . . . 1 . 1 . . 1 1 . Engine 8 | 1 2 . 1 3 1 . . . . . . . . . . . . . . . Core 3 | . . . . 1 1 1 . . . . . . . . . . . . . . Reactor 5 | . . . . . . 1 . . . . . . 1 . 1 . . 1 1 . Propulsion 48 | 2 . . 2 3 12 5 . 1 . 3 . 7 . . 1 . 5 3 4 . Treads 9 | 2 . . 2 2 1 2 . . . . . . . . . . . . . . Leg 5 | . . . . . 5 . . . . . . . . . . . . . . . Wheel 6 | . . . . 1 4 . . . . . . . . . . . . 1 . . Hover 7 | . . . . . 1 . . . . 1 . 1 . . 1 . 2 1 . . Flight 21 | . . . . . 1 3 . 1 . 2 . 6 . . . . 3 1 4 . Utility 55 | 3 3 . 2 5 10 2 6 2 1 5 . 5 . 1 3 . . 4 3 . Device 24 | 2 1 . 1 . 4 1 3 . 1 3 . 3 . 1 1 . . 2 1 . Storage 5 | 1 1 . . 2 . . . . . . . . . . 1 . . . . . Processor 12 | . . . . . 2 1 2 . . 2 . 1 . . . . . 2 2 . Hackware 7 | . . . . . 3 . 1 1 . . . 1 . . 1 . . . . . Protection 7 | . 1 . 1 3 1 . . 1 . . . . . . . . . . . . Artifact . | . . . . . . . . . . . . . . . . . . . . . Weapon 81 | 2 5 . 8 5 20 6 8 . . 10 1 7 1 . . . 3 3 2 . Energy Gun 14 | . . . 2 . 8 1 . . . 2 . 1 . . . . . . . . Energy Cannon 2 | . . . . . 1 . . . . . . . . . . . . 1 . . Ballistic Gun 24 | 2 3 . 5 . 8 2 . . . . . 2 . . . . . . 2 . Ballistic Cannon 2 | . . . . 1 1 . . . . . . . . . . . . . . . Launcher 4 | . 1 . . . . . 2 . . . . . . . . . . 1 . . Special Weapon 10 | . 1 . . 3 . 2 . . . 4 . . . . . . . . . . Impact Weapon 7 | . . . 1 . . . 3 . . . . 3 . . . . . . . . Slashing Weapon 9 | . . . . . 1 . 2 . . 4 . . . . . . 1 1 . . Piercing Weapon 5 | . . . . . 1 1 . . . . 1 1 . . . . 1 . . . Special Melee Weapon 4 | . . . . 1 . . 1 . . . . . 1 . . . 1 . . . Unidentified Prototypes 30 | . . . 1 . 5 . 2 1 . 9 . 4 . . 4 . 1 2 1 . Parts Lost 32 | . . . 2 . 6 . 3 1 . . . 2 . . . 2 . 4 8 4 Power 2 | . . . . . 1 . . . . . . . . . . . . 1 . . Propulsion 8 | . . . 1 . . . . . . . . . . . . 1 . 1 3 2 Utility 12 | . . . 1 . 4 . 1 1 . . . . . . . . . 2 3 . Weapon 10 | . . . . . 1 . 2 . . . . 2 . . . 1 . . 2 2 Highest Loss Streak 7 | . . . 2 . 3 . 3 1 . . . 2 . . . 2 . 1 7 4 To Critical Strikes 1 | . . . . . 1 . . . . . . . . . . . . . . . Average Backups 10 | 5 9 10 8 14 18 14 4 4 4 4 4 4 5 5 5 4 4 4 5 5 Power . | . . . . . . . . . . . . . . . . . . . . . Propulsion 1 | 3 3 3 1 1 5 5 . . . . . . 1 1 1 . . . . . Utility 3 | . 1 3 3 5 3 1 . 1 1 1 1 . . . . . . . . . Weapon 3 | . 4 4 3 5 5 3 1 1 1 1 1 1 1 . . . . . . . Tool/Special . | . . . . . . . . . . . . . . . . . . . . . Unused Backups 42 | . 7 . 4 6 11 7 . . . . . . 1 . . . 1 1 . 4 Power 6 | . 1 . . 2 2 . . . . . . . 1 . . . . . . . Propulsion 9 | . 4 . . 1 1 3 . . . . . . . . . . . . . . Utility 10 | . . . 1 2 4 2 . . . . . . . . . . 1 . . . Weapon 11 | . 2 . 3 1 2 2 . . . . . . . . . . . 1 . . Tool/Special 6 | . . . . . 2 . . . . . . . . . . . . . . 4 Average Slot Usage (%) 90 | . 99 100 99 80 90 88 97 96 100 85 82 88 80 84 81 75 79 77 79 60 Engine 7 | . 14 14 14 8 4 . . . . . . . . . . . . . . . Core 2 | . . . . 5 1 5 5 5 5 5 5 5 5 5 5 5 4 . . . Treads 12 | . 27 28 28 8 3 2 . . . . . . . . . . . . . . Wheel 3 | . . . . 9 6 5 . . . . . . . . . . . . . . Flight 5 | . . . . . . 5 23 23 23 23 23 28 21 21 21 21 21 22 23 16 Device 7 | . 12 . 11 2 7 11 15 13 11 6 . 6 5 5 5 10 9 8 6 4 Storage 9 | . 14 14 14 13 4 3 . . . . . . . . . . . . . . Processor 3 | . . . . . 4 6 6 11 11 15 23 17 10 10 8 5 4 5 20 17 Hackware 3 | . . . . . 9 11 10 5 11 11 11 5 5 5 5 5 4 4 4 4 Protection 3 | . 1 14 2 6 4 . . . . . . . 5 5 5 5 4 3 . . Energy Gun 4 | . . . 2 6 14 10 6 . . . . 1 . . . . . . . . Ballistic Gun 8 | . 27 28 10 . 9 16 5 . . . . 6 5 5 5 5 . . 2 3 Launcher 1 | . . . 4 . . . . . . . . . . . . . . . 4 2 Special Weapon 2 | . . . . 6 2 . . . . 3 5 1 . . . . . . . . Impact Weapon 7 | . . . 9 11 1 . 2 17 17 1 . 1 15 15 15 15 14 13 7 8 Slashing Weapon 1 | . . . . . . . 7 11 11 13 8 4 . . . . 3 . 2 . Piercing Weapon 1 | . . . . . . 3 5 5 5 . 1 7 5 5 5 2 3 2 . . Peak Build Rating 177 | 7 8 8 17 66 111 114 92 85 81 104 98 120 126 126 127 121 150 165 177 120 Average Rating 53 | 6 7 8 14 36 95 98 83 78 79 93 96 108 122 125 123 118 137 143 158 105 On Entrance 84 | . 7 8 8 17 66 93 89 81 81 79 98 94 120 126 126 121 117 150 165 120 Naked Turns . | . . . . . . . . . . . . . . . . . . . . . Heaviest Build 157 | 13 23 22 27 125 157 88 30 23 22 27 25 38 39 39 39 39 40 47 47 32 Greatest Support 155 | 40 40 40 40 40 112 155 33 33 24 26 26 40 40 40 40 40 58 58 61 37 Greatest Overweight (x) 5 | . . . . 4 5 2 1 . . 1 . . . . . . . . . . Average Overweight (x) . | . . . . 1 1 . . . . . . . . . . . . . . . Largest Inventory Capacity 20 | 8 10 10 10 20 20 20 5 5 5 5 5 5 5 5 5 5 5 5 5 5 Average Capacity 12 | 7 9 10 10 17 20 16 5 5 5 5 5 5 5 5 5 5 5 5 5 5 Most Carried 20 | 8 10 10 10 20 20 20 5 5 5 5 5 5 5 5 5 5 5 5 5 5 Average Carried 11 | 5 9 10 9 15 19 16 4 4 5 5 5 4 4 4 4 4 4 4 5 5 Final Capacity 20 | 8 10 10 10 20 20 5 5 5 5 5 5 5 5 5 5 5 5 5 5 5 Final Carried 20 | 8 10 10 10 20 20 5 5 5 5 5 5 5 5 5 5 4 5 5 5 5 Class Distribution -------------------- 35% | Mutant 13% | Sprinter 13% | Scavenger-Mutant 8% | Derelict-Mutant 7% | Hacker-Sprinter 7% | Hacker-Executioner 5% | Derelict-Tank 4% | Derelict-Executioner 3% | Scavenger-Executioner Dominant Class ---------------- Mutant | -10/Materials Mutant | -10/Mines Mutant | -10/Subcaves Derelict-Mutant | -7/Scraptown Hacker-Executioner | -5/Factory Hacker-Executioner | -5/Waste Hacker-Sprinter | -5/Factory Sprinter | -5/Upper Caves Hacker-Sprinter | -5/Upper Caves Hacker-Sprinter | -5/Warlord Hacker-Sprinter | -4/Proximity Caves Sprinter | -4/Factory Sprinter | -4/Upper Caves Sprinter | -4/Upper Caves Sprinter | -4/Zhirov Sprinter | -3/Proximity Caves Sprinter | -3/Research Sprinter | -3/Quarantine Sprinter | -2/Research Sprinter | -2/Testing Resources | -11 -10 -10 -10 -7 -5 -5 -5 -5 -5 -5 -4 -4 -4 -4 -4 -3 -3 -3 -2 -2 ----------- Run | Yrd Mat Min Sub Scr Fac Was Fac Upp Upp War Pro Fac Upp Upp Zhi Pro Res Qua Res Tes Matter Collected 4768 | 346 596 63 498 185 1476 289 246 96 16 250 10 240 40 20 120 5 90 120 9 53 Remotely 170 | 170 . . . . . . . . . . . . . . . . . . . . Salvage Created 8817 | 152 960 . 189 . 3559 130 443 213 240 . . 634 241 33 432 20 80 1309 110 72 Parts 379 | 12 61 . 12 . 147 8 24 11 12 . . 35 . . 1 . 1 39 13 3 Haulers Intercepted 13 | . 2 . . . 5 . 2 . . . . 3 . . . . . 1 . . Recyclers Shooed 8 | . 2 . . . 5 . . . . . . . . . . . . . 1 . Parts Field Recycled . | . . . . . . . . . . . . . . . . . . . . . Retrieved Matter . | . . . . . . . . . . . . . . . . . . . . . Parts Self-Destructed 18 | . . . 12 . . . . 2 3 . . . . . 1 . . . . . Prevented 4 | . . . . . . . . . . . . . . 4 . . . . . . Kills | -11 -10 -10 -10 -7 -5 -5 -5 -5 -5 -5 -4 -4 -4 -4 -4 -3 -3 -3 -2 -2 ------- Run | Yrd Mat Min Sub Scr Fac Was Fac Upp Upp War Pro Fac Upp Upp Zhi Pro Res Qua Res Tes Combat Hostiles Destroyed 103 | . 17 . 3 . 41 . 2 2 1 . . 14 . . . . . 10 10 3 Melee 16 | . . . . . 1 . 2 2 1 . . 6 . . . . . 4 . . Guns 49 | . 14 . 3 . 32 . . . . . . . . . . . . . . . Cannons 8 | . . . . . 7 . . . . . . 1 . . . . . . . . AOE 23 | . 3 . . . . . . . . . . 7 . . . . . . 10 3 Classes Destroyed 17 | 3 5 . 2 . 5 1 . 1 . . . . . . . . . . . . Worker 12 | 1 3 . . . 3 . 1 . . . . . . . . . . 3 1 . Builder 5 | . . . . . 1 . . . . . . 3 . . . . . . . 1 Tunneler 4 | 3 . . . . . . 1 . . . . . . . . . . . . . Hauler 13 | . 2 . . . 5 . 2 . . . . 3 . . . . . 1 . . Recycler 10 | 1 2 . . . 4 . . . . . . . . . . . . 3 . . Mechanic 2 | . . . . . 1 . . . . . . . . . . . . 1 . . Operator 7 | . 2 . . . . . 2 . . . . . . . . . 2 1 . . Watcher 6 | . 3 . . . 1 . 1 . . . . . . . . . 1 . . . Swarmer 33 | . 6 . . . 3 . . 2 . . . 9 . . . . . . 10 3 Grunt 41 | . 11 . . . 20 . . . . . . 4 . . . . . 6 . . Sentry 5 | . . . . . 5 . . . . . . . . . . . . . . . Hunter 8 | . . . . . 7 . 1 . . . . . . . . . . . . . Programmer 13 | . . . . . 6 . 1 . 1 . . 1 . . . . . 4 . . Artisan 3 | . . . 3 . . . . . . . . . . . . . . . . . Subdweller 3 | . . . 3 . . . . . . . . . . . . . . . . . Decomposer 7 | . . . . . . . . . . . . . 6 . . 1 . . . . Packrat 2 | . . . . . . . . 1 1 . . . . . . . . . . . Samaritan 8 | . . . . . . . . 2 2 . . . 3 1 . . . . . . Martyr 2 | . . . . . . 2 . . . . . . . . . . . . . . Best Kill Streak 11 | 2 5 . 2 . 8 . 3 2 1 . . 7 . . . . 2 6 11 4 Combat Bots Only 10 | . 4 . 2 . 7 . 1 2 1 . . 5 . . . . . 4 10 3 Max Kills in Single Turn 6 | 1 1 . 1 . 3 1 1 1 1 . . 6 1 1 . 1 1 2 4 3 Gunslinging . | . . . . . . . . . . . . . . . . . . . . . Exploded 3 | . 1 . . . . . . . . . . 2 . . . . . . 3 3 Melee 1 | . . . . . 1 . 1 1 1 . . 1 . . . . . 1 . . Uniques/NPCs Destroyed . | . . . . . . . . . . . . . . . . . . . . . Combat | -11 -10 -10 -10 -7 -5 -5 -5 -5 -5 -5 -4 -4 -4 -4 -4 -3 -3 -3 -2 -2 -------- Run | Yrd Mat Min Sub Scr Fac Was Fac Upp Upp War Pro Fac Upp Upp Zhi Pro Res Qua Res Tes Hostile Shots Fired 833 | . 72 . 26 . 206 . 69 14 . 16 2 111 . . . 9 16 148 118 26 Missed 352 | . 25 . 4 . 79 . 31 5 . 8 2 60 . . . 5 10 67 49 7 Hits 481 | . 47 . 22 . 127 . 38 9 . 8 . 51 . . . 4 6 81 69 19 Projectile 481 | . 47 . 22 . 127 . 38 9 . 8 . 51 . . . 4 6 81 69 19 Critical Strikes 20 | . . . . . 5 . 4 . . . . 2 . . . . 1 7 1 . Actively Blocked 11 | . . . . . . . . . . . . 2 . . . . 1 7 1 . Part Disruptions 1 | . . . . . . . . 1 . . . . . . . . . . . . Damage Taken 9213 | . 508 . 530 . 2078 16 715 213 . 116 . 955 . . . 89 185 1786 1591 431 Core 1414 | . 73 . 111 . 143 . 154 56 . . . 186 . . . . 88 180 309 114 Absorbed by Shields 10 | . . . . . . . . . . . . . . . . . 10 . . . Ignored by Resistances 289 | . . . . . 289 . . . . . . . . . . . . . . . Regen/Repaired (Parts) 1272 | . 106 . . . . 508 32 . . 87 . 36 . . . . 69 188 246 . Core Remaining (%) 70 | 100 . . . 26 . . . . . . 64 . . . . 83 . 79 . . Volleys Fired 232 | 11 79 . 42 4 82 2 . . . . . 4 . . . . . . 7 1 Largest 6 | 2 2 . 2 1 6 5 . . . . . 1 . . . . . . 3 1 Hottest 348 | 40 100 . 100 5 348 203 . . . . . . . . . . . . 112 52 Shots Fired 674 | 22 152 . 54 4 412 14 1 . . . . 4 . . . . . . 10 1 Gun 586 | 22 146 . 48 . 352 14 1 . . . . . . . . . . . 3 . Cannon 58 | . . . . . 58 . . . . . . . . . . . . . . . Launcher 15 | . 4 . 3 . . . . . . . . . . . . . . . 7 1 Special 15 | . 2 . 3 4 2 . . . . . . 4 . . . . . . . . Kinetic 405 | 22 146 . 39 . 186 8 1 . . . . . . . . . . . 3 . Thermal 244 | . 2 . 12 . 224 6 . . . . . . . . . . . . . . Explosive 19 | . 4 . 3 . . . . . . . . 4 . . . . . . 7 1 Electromagnetic . | . . . . . . . . . . . . . . . . . . . . . Robot Hit Streak 17 | 4 12 . 17 10 15 2 . . . . . 2 . . . . . . 4 . Robot Miss Streak 7 | 4 3 . 3 1 7 1 . . . . . 1 . . . . . . 1 . Penetration Max 1 | . . . . . 1 . . . . . . . . . . . . . . . Secondary Targets 10 | . 2 . 1 . 7 . . . . . . . . . . . . . . . Max Gunslinging Chain 1 | . 1 . 1 . 1 . . . . . . . . . . . . . . . Shots Hit Robots 521 | 11 101 . 33 2 230 12 24 6 5 . . 23 10 1 7 1 4 43 5 3 Core Hits 272 | 5 46 . 12 . 137 3 8 2 3 . . 21 . . 3 . . 6 21 5 Critical Kills 2 | . . . . . 2 . . . . . . . . . . . . . . . Critical Parts Destroyed 23 | . . . . . 4 1 . . . . . . 4 . 1 1 3 8 . 1 Critical Strikes 40 | . . . . . 12 1 2 1 . . . 3 4 . 1 1 3 11 . 1 Burn 2 | . . . . . 2 . . . . . . . . . . . . . . . Destroy 7 | . . . . . 6 1 . . . . . . . . . . . . . . Blast 4 | . . . . . 4 . . . . . . . . . . . . . . . Smash 18 | . . . . . . . . . . . . . 4 . 1 1 3 8 . 1 Sever 3 | . . . . . . . 1 . . . . 2 . . . . . . . . Impale 6 | . . . . . . . 1 1 . . . 1 . . . . . 3 . . Melee Attacks 369 | . . . 40 . 12 4 51 9 8 6 3 38 18 1 7 8 36 109 11 8 Impact 204 | . . . 40 . 1 . 2 2 2 . . 2 16 1 7 8 30 75 10 8 Slashing 50 | . . . . . 5 . 14 2 1 6 1 12 . . . . 2 6 1 . Piercing 115 | . . . . . 6 4 35 5 5 . 2 24 2 . . . 4 28 . . Sneak Attacks 47 | . . . . . 2 4 5 4 5 . . 3 10 1 . 1 1 10 . 1 Combat Hostiles 1 | . . . . . . . . . 1 . . . . . . . . . . . Follow-up Attacks 34 | . . . . . 1 . 8 1 . . . 6 . . 1 . 1 15 . 1 Damage Inflicted 22276 | 143 1490 . 481 . 6639 575 1188 435 461 . . 2511 1356 216 921 102 348 3335 1547 528 Guns 6858 | 143 1282 . 475 . 4687 253 . . . . . . . . . . . . 18 . Cannons 1016 | . . . . . 1016 . . . . . . . . . . . . . . . Explosions 4169 | . 208 . 6 . 695 . . . . . . 1407 . . . . . . 1529 324 Melee 10045 | . . . . . 203 322 1188 435 461 . . 954 1356 216 921 102 348 3335 . 204 Ramming 38 | . . . . . 38 . . . . . . . . . . . . . . . Kinetic 4671 | 143 1282 . 370 . 2750 108 . . . . . . . . . . . . 18 . Thermal 3753 | . . . 105 . 3503 145 . . . . . . . . . . . . . . Explosive 3472 | . 206 . 6 . . . . . . . . 1407 . . . . . . 1529 324 Electromagnetic 147 | . 2 . . . 145 . . . . . . . . . . . . . . . Impact 5295 | . . . . . . . . 112 . . . . 1354 216 921 102 348 2038 . 204 Slashing 849 | . . . . . 123 . 226 . . . . 421 . . . . . 79 . . Piercing 4051 | . . . . . 80 322 962 323 461 . . 683 2 . . . . 1218 . . Highest Corruption 16 | . . . . . 8 8 8 8 8 8 . . . . . . 5 16 5 5 Average Corruption 7 | . . . . . 5 8 8 8 8 8 . . . . . . 3 10 5 5 Corruption Purged . | . . . . . . . . . . . . . . . . . . . . . Corruption Blocked . | . . . . . . . . . . . . . . . . . . . . . Effects 138 | . . . . . 47 29 19 11 4 . . . . . . . 1 24 2 1 Message Errors 35 | . . . . . 11 6 5 4 . . . . . . . . . 8 1 . Matter Fused 30 | . . . . . 13 8 3 1 1 . . . . . . . . 4 . . Heat Flow Errors 16 | . . . . . 6 1 3 3 2 . . . . . . . . 1 . . Energy Discharges 19 | . . . . . 4 8 3 1 . . . . . . . . . 3 . . Parts Rejected 4 | . . . . . 1 . . . . . . . . . . . . 1 1 1 Parts Fused 1 | . . . . . 1 . . . . . . . . . . . . . . . Data Loss (minor) 15 | . . . . . 5 1 3 . 1 . . . . . . . 1 4 . . Data Loss (major) 4 | . . . . . 1 1 1 1 . . . . . . . . . . . . Misfires 7 | . . . . . 2 4 1 . . . . . . . . . . . . . Alerts 2 | . . . . . . . . 1 . . . . . . . . . 1 . . Misdirections 2 | . . . . . . . . . . . . . . . . . . 2 . . Weapon Failures 3 | . . . . . 3 . . . . . . . . . . . . . . . Overload Shots . | . . . . . . . . . . . . . . . . . . . . . Overflow Damage 4989 | . 49 . . . 250 . 143 279 192 . . 82 1298 213 430 102 306 1489 65 91 Projectiles 83 | . . . . . 13 . . . . . . . . . . . . 70 . . Explosions 426 | . 49 . . . 237 . . . . . . 75 . . . . . . 65 . Melee 4480 | . . . . . . . 143 279 192 . . 7 1298 213 430 102 306 1419 . 91 Knockbacks 18 | . . . . . 6 . . . . . . . . . . . . 12 . . Impact 10 | . . . . . . . . . . . . . . . . . . 10 . . Kinetic 6 | . . . . . 6 . . . . . . . . . . . . . . . Secondary 2 | . . . . . . . . . . . . . . . . . . 2 . . Self-Inflicted Damage 20 | . . . . . . . . . . . . . . . . . . . 20 . Shots 1 | . . . . . . . . . . . . . . . . . . . 1 . Rammed . | . . . . . . . . . . . . . . . . . . . . . Targets Rammed 2 | . . . . . 2 . . . . . . . . . . . . . . . Kicked 2 | . . . . . 2 . . . . . . . . . . . . . . . Crushed . | . . . . . . . . . . . . . . . . . . . . . Highest Temperature 395 | . 32 . 14 . 395 208 255 339 197 . . 13 . . . . 18 251 86 . Average Temperature 94 | . 7 . 10 . 126 127 113 128 96 . . 13 . . . . 7 132 30 . Received Heat Transfer 1263 | . 231 . 102 . 423 . 99 9 . 9 . 87 . . . 12 24 177 90 . Effects 8 | . . . . . 8 . . . . . . . . . . . . . . . Shutdowns 2 | . . . . . 2 . . . . . . . . . . . . . . . Interference 5 | . . . . . 5 . . . . . . . . . . . . . . . Short Circuit 1 | . . . . . 1 . . . . . . . . . . . . . . . Siege Activations . | . . . . . . . . . . . . . . . . . . . . . Martial Activations . | . . . . . . . . . . . . . . . . . . . . . Shielding Activations . | . . . . . . . . . . . . . . . . . . . . . Robots Disrupted . | . . . . . . . . . . . . . . . . . . . . . Combat Hostiles . | . . . . . . . . . . . . . . . . . . . . . Robots Corrupted 12 | . . . . . . . . . . . . . . . . . 2 9 . 1 Combat Hostiles 6 | . . . . . . . . . . . . . . . . . . 6 . . Parts Fried 29 | . . . . . . . . . . . . . 4 1 1 . 3 17 . 3 Impact Corruptions 111 | . . . . . . . . 2 . . . . 43 5 10 4 8 36 . 3 Robots Melted 1 | . . . . . 1 . . . . . . . . . . . . . . . Combat Hostiles 1 | . . . . . 1 . . . . . . . . . . . . . . . Parts Melted 7 | . . . . . 7 . . . . . . . . . . . . . . . Heat Transferred 5811 | . . . 125 . 5438 248 . . . . . . . . . . . . . . Parts Sabotaged . | . . . . . . . . . . . . . . . . . . . . . Parts Stolen . | . . . . . . . . . . . . . . . . . . . . . Parts Stripped . | . . . . . . . . . . . . . . . . . . . . . Power Chain Reactions 1 | . 1 . . . . . . . . . . . . . . . . . . . Alert | -11 -10 -10 -10 -7 -5 -5 -5 -5 -5 -5 -4 -4 -4 -4 -4 -3 -3 -3 -2 -2 ------- Run | Yrd Mat Min Sub Scr Fac Was Fac Upp Upp War Pro Fac Upp Upp Zhi Pro Res Qua Res Tes Maximum Alert Level 3 | . 1 . . . 3 1 1 . . . . 2 . . . . . 2 3 2 Low Security (%) 68 | 100 97 100 . . 41 83 98 . . . . 19 . . . . 100 47 41 . Level 1 12 | . 2 . . . 10 16 1 . . . . 33 . . . . . 51 7 . Level 2 15 | . . . . . 36 . . . . . . 47 . . . . . 1 44 100 Level 3 3 | . . . . . 10 . . . . . . . . . . . . . 5 . Level 4 . | . . . . . . . . . . . . . . . . . . . . . Level 5 . | . . . . . . . . . . . . . . . . . . . . . High Security . | . . . . . . . . . . . . . . . . . . . . . Max Security . | . . . . . . . . . . . . . . . . . . . . . Peak Influence 842 | 10 249 96 . . 842 293 207 . . . . 657 . . . . 85 426 838 576 Initial 471 | . . 96 . . . 293 . . . . . 15 . . . . 6 40 42 471 Average 177 | . 40 37 . . 331 79 83 . . . . 387 . . . . 16 202 325 539 Influence Increases 6584 | 25 660 . 227 . 1461 2 847 160 30 . 45 917 . . 15 60 194 845 976 120 Destroy 0b10 Robot/C 2360 | . 340 . 140 . 840 . 240 40 20 . . 280 . . . . . 200 200 60 Destroy 0b10 Robot/NC 310 | 25 60 . . . 75 . 35 . . . . 30 . . 15 . 15 45 5 5 Destroy Leader 488 | . 110 . . . 202 . 66 . 10 . . 46 . . . . 2 22 20 10 Allied During Kill 175 | . . . 57 . 34 . 84 . . . . . . . . . . . . . Successful Hack 276 | . 14 . . . 18 . 81 . . . . 62 . . . . 36 58 7 . Select Force Hacks 60 | . 60 . . . . . . . . . . . . . . . . . . . Disable Machine 360 | . 45 . . . 150 . . . . . . 75 . . . . . 75 15 . Destroy Structure 605 | . 31 . . . 112 2 26 . . . . 64 . . . . 36 40 249 45 Partial Spotted 240 | . . . . . . . 90 . . . . 75 . . . . 45 30 . . Lose Combat Pursuer 1710 | . . . 30 . 30 . 225 120 . . 45 285 . . . 60 60 375 480 . Influence Decreases 6043 | 25 411 249 144 83 623 840 640 218 79 100 20 285 394 131 147 50 131 843 213 417 Entered New Map 1862 | . . 153 . 83 . 545 . 78 29 100 . 10 244 51 132 . 4 33 33 367 Time Decay 2899 | 25 411 96 124 . 451 255 250 130 50 . 20 245 150 80 15 50 127 310 100 10 Search Patrol Dispatched 150 | . . . . . . . . . . . . . . . . . . 150 . . Lost Part 272 | . . . . . 52 . 30 10 . . . 20 . . . . . 40 80 40 Lost Ally 443 | . . . 20 . 120 40 243 . . . . 10 . . . . . 10 . . Purge Threat 417 | . . . . . . . 117 . . . . . . . . . . 300 . . Squads Dispatched 57 | . 7 . . . 14 . 11 . . . . 10 . . . . 3 7 4 1 Investigation 24 | . 3 . . . 3 . 6 . . . . 7 . . . . . 2 3 . Extermination 12 | . . . . . 4 . 2 . . . . 1 . . . . 1 3 1 . Reinforcement 17 | . 4 . . . 4 . 3 . . . . 1 . . . . 2 2 . 1 Assault 1 | . . . . . . . . . . . . 1 . . . . . . . . Garrison 3 | . . . . . 3 . . . . . . . . . . . . . . . Intercept . | . . . . . . . . . . . . . . . . . . . . . Searches Triggered 1 | . . . . . . . . . . . . . . . . . . 1 . . Construction Impeded 4 | . . . . . 3 . . . . . . . . . . . . . . 1 Haulers Reinforced 2 | . . . . . . . 1 . . . . . . . . . . 1 . . Active Scanning Responses . | . . . . . . . . . . . . . . . . . . . . . Cargo Convoy Interrupts 1 | . . . . . . . . . . . . 1 . . . . . . . . Stealth | -11 -10 -10 -10 -7 -5 -5 -5 -5 -5 -5 -4 -4 -4 -4 -4 -3 -3 -3 -2 -2 --------- Run | Yrd Mat Min Sub Scr Fac Was Fac Upp Upp War Pro Fac Upp Upp Zhi Pro Res Qua Res Tes Distress Signals 14 | . 1 . . . 2 . 3 . . 1 . 2 . . . . 1 2 2 . Communications Jammed . | . . . . . . . . . . . . . . . . . . . . . Distress Signals . | . . . . . . . . . . . . . . . . . . . . . Times Spotted 363 | . 26 . 19 . 51 6 23 5 . 36 3 52 . . . 6 18 52 61 5 Peak Tracking Total 30 | . 3 . 2 . 5 2 6 10 . 7 3 14 . . . 4 7 10 30 5 Tactical Retreats 44 | . . . 1 . 2 . 9 4 . . 1 8 . . . 2 2 8 7 . Traps | -11 -10 -10 -10 -7 -5 -5 -5 -5 -5 -5 -4 -4 -4 -4 -4 -3 -3 -3 -2 -2 ------- Run | Yrd Mat Min Sub Scr Fac Was Fac Upp Upp War Pro Fac Upp Upp Zhi Pro Res Qua Res Tes Traps Triggered 16 | . 1 . 2 . 1 . 1 1 . . . 2 . . . . 6 1 1 . Indirectly . | . . . . . . . . . . . . . . . . . . . . . Trap Hack Attempts . | . . . . . . . . . . . . . . . . . . . . . Triggered . | . . . . . . . . . . . . . . . . . . . . . Disarmed . | . . . . . . . . . . . . . . . . . . . . . Reprogrammed . | . . . . . . . . . . . . . . . . . . . . . Reused . | . . . . . . . . . . . . . . . . . . . . . Traps Extracted . | . . . . . . . . . . . . . . . . . . . . . Installed . | . . . . . . . . . . . . . . . . . . . . . Triggered . | . . . . . . . . . . . . . . . . . . . . . Machines | -11 -10 -10 -10 -7 -5 -5 -5 -5 -5 -5 -4 -4 -4 -4 -4 -3 -3 -3 -2 -2 ---------- Run | Yrd Mat Min Sub Scr Fac Was Fac Upp Upp War Pro Fac Upp Upp Zhi Pro Res Qua Res Tes Machines Disabled 30 | . 3 . 4 . 10 . . . . 1 . 5 1 . . . . 5 1 . Max in Single Turn 2 | . 1 . 1 . 2 . . . . 1 . 2 1 . . . . 1 1 . Garrison Access 2 | . . . . . . . 1 . . . . . . . . . 1 . . . Machines Repaired . | . . . . . . . . . . . . . . . . . . . . . Machines Dismantled 1 | . . . . . . . . . . 1 . . . . . . . . . . Machines Sabotaged . | . . . . . . . . . . . . . . . . . . . . . Overloaded Fab Kills . | . . . . . . . . . . . . . . . . . . . . . Hacking | -11 -10 -10 -10 -7 -5 -5 -5 -5 -5 -5 -4 -4 -4 -4 -4 -3 -3 -3 -2 -2 --------- Run | Yrd Mat Min Sub Scr Fac Was Fac Upp Upp War Pro Fac Upp Upp Zhi Pro Res Qua Res Tes Machines Accessed 100 | . 7 . 2 2 12 . 17 1 1 4 . 17 3 . 6 . 8 13 7 . Terminals 44 | . 4 . . . 5 . 9 . . . . 8 1 . . . 5 8 4 . Fabricators 3 | . . . . . 2 . . . . . . . . . . . 1 . . . Repair Stations 7 | . 1 . . . . . . . . . . 2 . . . . 1 1 2 . Recycling Units 10 | . 2 . . . 2 . 4 . . . . 2 . . . . . . . . Scanalyzers 11 | . . . . . 2 . 2 . . . . 3 . . . . . 3 1 . Garrison Access 7 | . . . . . 1 . 2 . . . . 2 . . . . 1 1 . . Total Hacks 272 | . 23 . 6 12 31 . 40 1 1 11 . 48 3 . 36 . 16 30 14 . Successful 148 | . 11 . 6 12 13 . 16 1 1 11 . 17 3 . 36 . 5 13 3 . Failed 124 | . 12 . . . 18 . 24 . . . . 31 . . . . 11 17 11 . Catastrophic 30 | . . . . . 8 . 5 . . . . 8 . . . . 4 3 2 . Database Lockouts . | . . . . . . . . . . . . . . . . . . . . . Manual 75 | . 20 . . . 7 . 13 . . . . 20 . . . . . 9 6 . Terminals 115 | . 18 . . . 10 . 21 . . . . 29 1 . . . 9 18 9 . Fabricators 10 | . . . . . 8 . . . . . . . . . . . 2 . . . Repair Stations 13 | . 2 . . . . . . . . . . 2 . . . . 4 2 3 . Recycling Units 17 | . 3 . . . 2 . 7 . . . . 5 . . . . . . . . Scanalyzers 36 | . . . . . 10 . 6 . . . . 9 . . . . . 9 2 . Garrison Access 12 | . . . . . 1 . 6 . . . . 3 . . . . 1 1 . . Terminal Hacks 103 | . 4 . 6 12 3 . 7 1 1 11 . 9 3 . 36 . 2 6 2 . Record 54 | . . . 5 12 . . . . . 10 . . 2 . 24 . . 1 . . Part Schematic 8 | . 2 . . . 2 . . . . . . . . . 4 . . . . . Robot Schematic 1 | . 1 . . . . . . . . . . . . . . . . . . . Robot Analysis 4 | . . . . . . . . . . . . . . . 4 . . . . . Prototype ID Bank 6 | . . . . . . . . . . . . 1 . . 4 . . 1 . . Open Door 4 | . . . . . . . . 1 1 1 . . 1 . . . . . . . Open DSF 1 | . . . . . . . . . . . . . . . . . 1 . . . Branch Access Points 3 | . . . . . . . 1 . . . . 1 . . . . . . 1 . Emergency Access Points 3 | . . . . . . . 2 . . . . 1 . . . . . . . . Terminal Index 2 | . . . . . . . . . . . . 1 . . . . . 1 . . Fabricator Index 2 | . . . . . . . . . . . . 2 . . . . . . . . Recycling Unit Index 1 | . . . . . 1 . . . . . . . . . . . . . . . Scanalyzer Index 2 | . . . . . . . 1 . . . . 1 . . . . . . . . Unreport Threat 4 | . . . . . . . 2 . . . . . . . . . . 2 . . Locate Traps 4 | . 1 . . . . . 1 . . . . 1 . . . . . . 1 . Recall Extermination 1 | . . . . . . . . . . . . 1 . . . . . . . . Registered Components 2 | . . . . . . . . . . . . . . . . . 1 1 . . Proto ID Catalog 1 | . . . 1 . . . . . . . . . . . . . . . . . Fabricator Hacks 3 | . . . . . 3 . . . . . . . . . . . . . . . Network Status 2 | . . . . . 2 . . . . . . . . . . . . . . . Build 1 | . . . . . 1 . . . . . . . . . . . . . . . Repair Station Hacks 4 | . 2 . . . . . . . . . . . . . . . 2 . . . Scan Component 2 | . 1 . . . . . . . . . . . . . . . 1 . . . Repair 2 | . 1 . . . . . . . . . . . . . . . 1 . . . Recycling Unit Hacks . | . . . . . . . . . . . . . . . . . . . . . Scanalyzer 15 | . . . . . 4 . 2 . . . . 4 . . . . . 5 . . Insert Component 9 | . . . . . 2 . 1 . . . . 3 . . . . . 3 . . Analyze 6 | . . . . . 2 . 1 . . . . 1 . . . . . 2 . . Garrison Access Hacks 2 | . . . . . . . 1 . . . . . . . . . 1 . . . Seal Access 2 | . . . . . . . 1 . . . . . . . . . 1 . . . Unauthorized Hacks 21 | . 5 . . . 3 . 6 . . . . 4 . . . . . 2 1 . Terminals 7 | . 3 . . . . . 2 . . . . 1 . . . . . 1 . . Assimilate 4 | . . . . . . . 2 . . . . 1 . . . . . 1 . . Skim 3 | . 3 . . . . . . . . . . . . . . . . . . . Fabricators 1 | . . . . . 1 . . . . . . . . . . . . . . . Haulers 1 | . . . . . 1 . . . . . . . . . . . . . . . Repair Stations 4 | . . . . . . . . . . . . 2 . . . . . 1 1 . Patch 4 | . . . . . . . . . . . . 2 . . . . . 1 1 . Recycling Units 9 | . 2 . . . 2 . 4 . . . . 1 . . . . . . . . Tunnel 2 | . 2 . . . . . . . . . . . . . . . . . . . Fedlink 7 | . . . . . 2 . 4 . . . . 1 . . . . . . . . Scanalyzers . | . . . . . . . . . . . . . . . . . . . . . Garrison Access . | . . . . . . . . . . . . . . . . . . . . . Data Cores Recovered 2 | . . . . . . . . . . . . . . . . . 1 1 . . Used . | . . . . . . . . . . . . . . . . . . . . . Hacking Detections 63 | . 4 . . . 9 . 13 . . . . 13 . . . . 6 12 6 . Full Trace Events 11 | . 1 . . . 1 . 2 . . . . 4 . . . . . 1 2 . Feedback Events 1 | . . . . . . . . . . . . . . . . . . 1 . . Corruption 1 | . . . . . . . . . . . . . . . . . . 1 . . Feedback Blocked . | . . . . . . . . . . . . . . . . . . . . . Robot Schematics Acquired 1 | . 1 . . . . . . . . . . . . . . . . . . . Robots Built . | . . . . . . . . . . . . . . . . . . . . . Authchips . | . . . . . . . . . . . . . . . . . . . . . Time . | . . . . . . . . . . . . . . . . . . . . . Total Robot Build Rating . | . . . . . . . . . . . . . . . . . . . . . Part Schematics Acquired 10 | . 2 . . . 3 . 1 . . . . . . . 4 . . . . . Parts Built 2 | . . . . . 2 . . . . . . . . . . . . . . . Authchips . | . . . . . . . . . . . . . . . . . . . . . Time 117 | . . . . . 117 . . . . . . . . . . . . . . . Total Part Build Rating 14 | . . . . . 14 . . . . . . . . . . . . . . . Parts Repaired 2 | . 1 . . . . . . . . . . . . . . . 1 . . . Time 80 | . 26 . . . . . . . . . . . . . . . 54 . . . Parts Recycled . | . . . . . . . . . . . . . . . . . . . . . Recycled Matter . | . . . . . . . . . . . . . . . . . . . . . Retrieved Matter . | . . . . . . . . . . . . . . . . . . . . . Retrieved Components . | . . . . . . . . . . . . . . . . . . . . . Parts Scanalyzed 4 | . . . . . 2 . 1 . . . . . . . . . . 1 . . Part Schematics Acquired 2 | . . . . . 1 . 1 . . . . . . . . . . . . . Parts Damaged 2 | . . . . . . . 1 . . . . 1 . . . . . . . . Bothacking | -11 -10 -10 -10 -7 -5 -5 -5 -5 -5 -5 -4 -4 -4 -4 -4 -3 -3 -3 -2 -2 ------------ Run | Yrd Mat Min Sub Scr Fac Was Fac Upp Upp War Pro Fac Upp Upp Zhi Pro Res Qua Res Tes Used RIF Installer . | . . . . . . . . . . . . . . . . . . . . . Robots Hacked 2 | . . . . 2 . . . . . . . . . . . . . . . . Non-combat . | . . . . . . . . . . . . . . . . . . . . . Combat 2 | . . . . 2 . . . . . . . . . . . . . . . . Robot Hacks Applied 2 | . . . . 2 . . . . . . . . . . . . . . . . parse_system 2 | . . . . 2 . . . . . . . . . . . . . . . . Relay Couplers Released 3 | . . . . . . . 3 . . . . . . . . . . . . . Programmers 3 | . . . . . . . 3 . . . . . . . . . . . . . Fabnet Peak Effective % . | . . . . . . . . . . . . . . . . . . . . . Robots Rewired . | . . . . . . . . . . . . . . . . . . . . . Allies Hacked . | . . . . . . . . . . . . . . . . . . . . . Hacks Repelled . | . . . . . . . . . . . . . . . . . . . . . Allies | -11 -10 -10 -10 -7 -5 -5 -5 -5 -5 -5 -4 -4 -4 -4 -4 -3 -3 -3 -2 -2 -------- Run | Yrd Mat Min Sub Scr Fac Was Fac Upp Upp War Pro Fac Upp Upp Zhi Pro Res Qua Res Tes Total Allies 34 | . . . 13 . . 18 1 . . . . 1 . . . . . 1 . . Largest Group 18 | . . . 12 12 10 18 14 . . . . . . . . . . 1 . . Highest-Rated Group 656 | . . . 228 228 190 656 503 . . . . . . . . . . 45 . . Highest-Rated Ally 50 | . . . 19 19 19 50 46 . . . . . . . . . . 45 . . Total Orders . | . . . . . . . . . . . . . . . . . . . . . Ally Attacks 310 | . . . 41 . 40 146 83 . . . . . . . . . . . . . Total Damage 5529 | . . . 576 . 573 2731 1649 . . . . . . . . . . . . . Kills 25 | . . . 7 . 2 6 10 . . . . . . . . . . . . . Allies Corrupted 1 | . . . . . . . 1 . . . . . . . . . . . . . Allies Melted 1 | . . . . . . . 1 . . . . . . . . . . . . . Intel | -11 -10 -10 -10 -7 -5 -5 -5 -5 -5 -5 -4 -4 -4 -4 -4 -3 -3 -3 -2 -2 ------- Run | Yrd Mat Min Sub Scr Fac Was Fac Upp Upp War Pro Fac Upp Upp Zhi Pro Res Qua Res Tes Active Infowar (turns) 4795 | 29 1493 . . . . . 281 112 . 50 101 532 304 176 104 211 473 692 206 31 Optics 2880 | . . . . . . . . . . 50 101 532 304 176 104 211 473 692 206 31 IFF 1428 | . . . . . . . 281 112 . . . . . . 28 211 473 323 . . Seismic 1522 | 29 1493 . . . . . . . . . . . . . . . . . . . Cloaking 358 | . . . . . . . . . . . . . . . . . . 259 99 . Jamming 1 | . . . . . . . . . . . . . . . . . . 1 . . Robot Analysis Total 4 | . . . . . . . . . . . . . . . 4 . . . . . Derelict Logs Recovered 14 | . . . 3 4 . . . 1 1 . 3 . 1 1 . . . . . . Drone Launches . | . . . . . . . . . . . . . . . . . . . . . Drone Recoveries . | . . . . . . . . . . . . . . . . . . . . . Exploration | -11 -10 -10 -10 -7 -5 -5 -5 -5 -5 -5 -4 -4 -4 -4 -4 -3 -3 -3 -2 -2 ------------- Run | Yrd Mat Min Sub Scr Fac Was Fac Upp Upp War Pro Fac Upp Upp Zhi Pro Res Qua Res Tes Turns Passed 20967 | 213 1714 273 5876 5043 2369 923 599 272 109 746 101 532 304 176 104 211 473 692 206 31 Spaces Moved 21341 | 104 870 170 3380 3566 1425 639 1498 843 352 1063 357 1410 885 598 244 648 1268 1421 571 29 Core 6 | 6 . . . . . . . . . . . . . . . . . . . . Treads 5107 | 98 870 170 3380 442 . 147 . . . . . . . . . . . . . . Legs 380 | . . . . . 380 . . . . . . . . . . . . . . . Wheels 4438 | . . . . 3124 1045 269 . . . . . . . . . . . . . . Hover . | . . . . . . . . . . . . . . . . . . . . . Flight 11410 | . . . . . . 223 1498 843 352 1063 357 1410 885 598 244 648 1268 1421 571 29 Fastest Speed 21 | 50 160 160 160 100 115 26 26 26 26 26 26 21 28 28 28 28 21 22 21 26 Average Speed 81 | 153 160 160 160 134 125 106 26 26 26 26 26 25 28 28 28 28 24 26 23 26 Slowest Speed 250 | 160 160 160 160 160 190 250 96 26 26 96 26 28 28 28 28 28 28 33 30 29 Overloaded Moves . | . . . . . . . . . . . . . . . . . . . . . Propulsion Burnouts . | . . . . . . . . . . . . . . . . . . . . . Robots Hopped 33 | . . . . . . . 2 . . 1 . 16 . . . . 7 6 1 . Potential Cave-ins . | . . . . . . . . . . . . . . . . . . . . . Cave-ins Triggered . | . . . . . . . . . . . . . . . . . . . . . Exploration Rate (%) 63 | 7 98 35 92 95 38 97 37 86 64 91 64 36 95 78 63 89 29 95 29 5 Regions Visited 20 Branch Regions 13 Pre-discovered Areas 13 | . 2 1 2 1 1 . . . . . 2 . 1 . 3 . . . . . Known Exits Taken 5 | . . . . . . . 1 . . . 1 1 . . . 1 . . 1 . Unknown Exits Taken 13 | 1 1 1 1 1 . . . 1 1 1 . . 1 1 1 . 1 1 . . Scrap Searched 35 | . . . 12 11 . . . 2 2 . 2 . 2 4 . . . . . . Spaces Dug 191 | . 2 . 40 . 4 . 13 . . 5 1 3 3 . . 5 18 20 54 23 Terrain Destroyed 348 | . 26 . 52 . 56 1 13 . . 5 1 32 3 . . 5 18 20 93 23 Melee 113 | . . . 34 . 4 . 13 . . 5 1 3 3 . . 5 18 20 7 . Projectile 29 | . 2 . . . 26 1 . . . . . . . . . . . . . . AOE 206 | . 24 . 18 . 26 . . . . . . 29 . . . . . . 86 23 Terrain Rammed . | . . . . . . . . . . . . . . . . . . . . . Walls Destroyed . | . . . . . . . . . . . . . . . . . . . . . Machines Disabled . | . . . . . . . . . . . . . . . . . . . . . Actions | -11 -10 -10 -10 -7 -5 -5 -5 -5 -5 -5 -4 -4 -4 -4 -4 -3 -3 -3 -2 -2 --------- Run | Yrd Mat Min Sub Scr Fac Was Fac Upp Upp War Pro Fac Upp Upp Zhi Pro Res Qua Res Tes Total 23888 | 132 1041 171 3750 3814 1786 875 1626 885 359 1503 360 1519 918 603 267 667 1374 1585 613 40 Wait 1490 | . 50 2 236 165 140 183 64 21 2 393 . 48 15 1 . 13 74 74 7 2 Move 21260 | 103 869 169 3379 3565 1425 638 1493 842 351 1060 356 1379 884 597 243 647 1255 1408 568 29 Hop 29 | . . . . . . . 2 . . 1 . 14 . . . . 5 6 1 . Pick Up 129 | 9 13 . 14 42 33 4 . 1 . . . 5 1 1 1 . 2 3 . . Fast Attach 119 | 7 1 . 2 8 17 7 13 4 . 7 1 17 1 . 3 . 7 12 11 1 Attach 32 | 1 2 . 1 3 12 8 1 . . . . 2 . . 1 1 . . . . Detach 6 | . . . . . 2 1 2 . . . . . . . 1 . . . . . Swap 118 | . 12 . 17 8 22 4 7 5 1 18 . 7 2 2 8 . 2 . 3 . Drop 185 | 1 15 . 19 19 40 24 8 7 . 11 1 16 1 1 4 . 3 9 6 . Fire 232 | 11 79 . 42 4 82 2 . . . . . 4 . . . . . . 7 1 Melee 272 | . . . 40 . 11 4 35 5 5 5 2 27 14 1 6 6 23 73 8 7 Ram . | . . . . . . . . . . . . . . . . . . . . . Kick 2 | . . . . . 2 . . . . . . . . . . . . . . . Crush . | . . . . . . . . . . . . . . . . . . . . . Escape Stasis 5 | . . . . . . . . . . . . . . . . . 3 . 2 . Rewire . | . . . . . . . . . . . . . . . . . . . . . Trap . | . . . . . . . . . . . . . . . . . . . . . Miscellaneous 9 | . . . . . . . 1 . . 8 . . . . . . . . . . Route ------- -11/Scrapyard -10/Materials (discovered 5 exits: [*Mat x3] / [*Min] / *Sub) -10/Mines (discovered 3 exits: [*Mat] / [*Exi] / *Sub) -10/Subcaves (discovered 4 exits: [*Mat x2] / [*Rec] / *Scr) -7/Scraptown (discovered 2 exits: *Fac x2) -5/Factory -5/Waste -5/Factory (discovered 2 exits: *Upp x2) -5/Upper Caves -5/Upper Caves (discovered 2 exits: *Fac / *War) -5/Warlord -4/Proximity Caves -4/Factory (discovered 5 exits: *Res x3 / *Upp x2) -4/Upper Caves -4/Upper Caves (discovered 2 exits: Res / *Zhi) -4/Zhirov -3/Proximity Caves -3/Research -3/Quarantine -2/Research (discovered 2 exits: *Tes x2) -2/Testing History --------- Turn | Location | Event 2 | -11/Scrapyard | Met Revision 17 11 | -11/Scrapyard | Discovered new exit (range 14) 214 | -11/Scrapyard | Entered Materials 229 | -10/Materials | Discovered new exit (range 16) 310 | -10/Materials | Build established: Mutant 314 | -10/Materials | Discovered new exit (range 16) 654 | -10/Materials | Discovered new exit (range 10) 1020 | -10/Materials | Discovered new exit (range 8) 1186 | -10/Materials | Repaired Lgt. Treads 1225 | -10/Materials | Discovered new exit (range 10) 1928 | -10/Materials | Entered Mines 1935 | -10/Mines | Met a Derelict bent on vengeance 1965 | -10/Mines | Discovered new exit (range 10) 2077 | -10/Mines | Discovered new exit (range 10) 2116 | -10/Mines | Deemed a non-threat by the Exiles lab entrance 2117 | -10/Mines | Discovered new exit (range 5) 2201 | -10/Mines | Entered Subcaves 2202 | -10/Subcaves | Approached by a straggling Scientist 2240 | -10/Subcaves | A swath of the cavern ceiling suddenly collapsed 2510 | -10/Subcaves | Shifting Twisted Machinery released Sub. Shrapnel Launcher 2512 | -10/Subcaves | Shifting Twisted Machinery released Battle Cannon 2603 | -10/Subcaves | Discovered new exit (range 15) 2672 | -10/Subcaves | Learned Materials trap positions 2699 | -10/Subcaves | Disturbed a concealed Subdweller 2710 | -10/Subcaves | Core integrity fell below 50% 2985 | -10/Subcaves | Visited 4L-MR0's lab 3009 | -10/Subcaves | Found Tower Shield 3208 | -10/Subcaves | Scientist uncovered a shortcut to Scraptown 3360 | -10/Subcaves | Build established: Scavenger-Mutant 3390 | -10/Subcaves | Visited triangular shrine 3393 | -10/Subcaves | Learned 2 Materials zone layouts 3399 | -10/Subcaves | Found Prototype Device 3399 | -10/Subcaves | Identified V3-11A's Pendant 3404 | -10/Subcaves | Befriended Subdweller 3529 | -10/Subcaves | Befriended Subdweller 3538 | -10/Subcaves | Discovered new exit (range 8) 3684 | -10/Subcaves | Shifting Twisted Machinery released Sub. Machine Gun 3724 | -10/Subcaves | Befriended Subdweller 3734 | -10/Subcaves | Befriended Subdweller 3735 | -10/Subcaves | Shifting Twisted Machinery released Sub. Shrapnel Launcher 3836 | -10/Subcaves | Learned location of Zion (-7) 3836 | -10/Subcaves | Met a Zionite searching for "candidates" 4324 | -10/Subcaves | Build established: Mutant 4339 | -10/Subcaves | Befriended Subdweller 4344 | -10/Subcaves | Befriended Subdweller 4585 | -10/Subcaves | Discovered new exit (range 12) 4644 | -10/Subcaves | Befriended Subdweller 4649 | -10/Subcaves | Befriended Subdweller 4684 | -10/Subcaves | Befriended Subdweller 4684 | -10/Subcaves | Befriended Subdweller 4994 | -10/Subcaves | Befriended Subdweller 5002 | -10/Subcaves | Learned location of Mines (-10) 5604 | -10/Subcaves | Visited Clippyterm 5609 | -10/Subcaves | Learned Research machine intel 5609 | -10/Subcaves | Learned Factory stockpile data 6739 | -10/Subcaves | Befriended Subdweller 7248 | -10/Subcaves | Build established: Scavenger-Mutant 7394 | -10/Subcaves | Befriended Subdweller 8077 | -10/Subcaves | Entered Scraptown 8077 | -7/Scraptown | Accompanied by 12 allies 8468 | -7/Scraptown | Discovered new exit (range 5) 8510 | -7/Scraptown | Scanned Subdweller tech in exchange for log data 8515 | -7/Scraptown | Learned Factory trap positions 8518 | -7/Scraptown | Learned Factory emergency access door positions 8521 | -7/Scraptown | Learned Factory terminal intel 8683 | -7/Scraptown | Visited SPCMW 8752 | -7/Scraptown | Visited Bundlers 8815 | -7/Scraptown | Visited Artisan Demo Area 8893 | -7/Scraptown | Delivered V3-11A's Pendant to T0-NE2 in exchange for information 9087 | -7/Scraptown | Visited Fellowship of the Rings 9094 | -7/Scraptown | Build established: Mutant 9099 | -7/Scraptown | Visited Shadow of the Wyrm 9136 | -7/Scraptown | Visited The Evicted 9159 | -7/Scraptown | Visited Comm Corps 9257 | -7/Scraptown | Visited UFD Registry 9257 | -7/Scraptown | Registered with UFD as "Datanuts" 9297 | -7/Scraptown | Visited Abandonware Association 9307 | -7/Scraptown | Learned abandonware demo "TRNCOAT.EXE" 9346 | -7/Scraptown | Visited Chapter 10 9371 | -7/Scraptown | Visited Scrap Suit Storage 9399 | -7/Scraptown | Delivered Scrap Shield to a Scientist 9529 | -7/Scraptown | Visited DA-N13 Charitable Foundation 9540 | -7/Scraptown | Found DCF Scrap (26 items) 9581 | -7/Scraptown | Visited Scrapoid Pod Storage 9600 | -7/Scraptown | Visited Junk Repository 9664 | -7/Scraptown | Visited Modified Component R&D 9922 | -7/Scraptown | Visited LU-1G1's Boring Crew 10058 | -7/Scraptown | Discovered new exit (range 5) 10575 | -7/Scraptown | Build established: Derelict-Mutant 11233 | -7/Scraptown | Attached Tower Shield, gained temporary slots: Power, Propulsion x2, Utility x2, Weapon x2 12334 | -7/Scraptown | Build established: Derelict-Tank 13011 | -7/Scraptown | Met Optimus 13011 | -7/Scraptown | Accepted into 0bPrime 13120 | -7/Scraptown | Entered Factory 13120 | -5/Factory | Accompanied by 10 allies 13120 | -5/Factory | Evolved 10 slots: Propulsion x2, Utility x4, Weapon x4 13121 | -5/Factory | Loaded intel: 136 trap records 13124 | -5/Factory | Loaded intel: 25 terminal locations 13298 | -5/Factory | Lost 6 allies 13440 | -5/Factory | Build established: Derelict-Executioner 13494 | -5/Factory | Lost 3 allies 13760 | -5/Factory | Fabricated Dispersion Rifle (x2) 14082 | -5/Factory | Loaded intel: 8 recycling unit locations 14122 | -5/Factory | Garrison activated, responded to threat 14179 | -5/Factory | Destroyed 7 combat bots 14278 | -5/Factory | Build established: Hacker-Executioner 14422 | -5/Factory | Lost 3 parts (2u1w) 14783 | -5/Factory | Build established: Scavenger-Executioner 14880 | -5/Factory | Discovered new exit (range 14) 15251 | -5/Factory | Build established: Hacker-Executioner 15419 | -5/Factory | Learned location of Protoforge (-2) 15489 | -5/Factory | Sucked down chute 15489 | -5/Factory | Entered Waste 15529 | -5/Waste | Warlord forces began an assault 15576 | -5/Waste | Spotted C-40 Crusher 15583 | -5/Waste | Allies destroyed C-40 Crusher 15610 | -5/Waste | Spotted C-40 Crusher 15619 | -5/Waste | Spotted C-40 Crusher 15619 | -5/Waste | Allies destroyed C-40 Crusher 15625 | -5/Waste | Allies destroyed C-40 Crusher 15633 | -5/Waste | Spotted C-40 Crusher 15639 | -5/Waste | Spotted C-40 Crusher 15642 | -5/Waste | Allies destroyed C-40 Crusher 15698 | -5/Waste | Spotted C-40 Crusher 15705 | -5/Waste | Allies destroyed C-40 Crusher 15737 | -5/Waste | Discovered new exit (range 12) 16285 | -5/Waste | Found Broken Adv. Force Booster 16412 | -5/Waste | Entered Factory 16412 | -5/Factory | Accompanied by 14 allies 16421 | -5/Factory | Loaded intel: 8 recycling unit locations 16424 | -5/Factory | Identified exit to Upper Caves 16544 | -5/Factory | Lost 4 allies 16626 | -5/Factory | Build established: Hacker-Sprinter 16732 | -5/Factory | Lost 4 allies 16853 | -5/Factory | Found Prototype Launcher 16853 | -5/Factory | Identified Tesla Bomb Launcher 16950 | -5/Factory | Lost 3 parts (1u2w) 17011 | -5/Factory | Entered Upper Caves 17013 | -5/Upper Caves | UFD Scientist delivered a prototype 17016 | -5/Upper Caves | Found Prototype Protection 17016 | -5/Upper Caves | Identified Enh. Scrap Shield 17123 | -5/Upper Caves | Spotted B-75 Beast 17215 | -5/Upper Caves | Discovered new exit (range 11) 17241 | -5/Upper Caves | Learned Factory emergency access door positions 17261 | -5/Upper Caves | Encountered a Warlord checkpoint 17283 | -5/Upper Caves | Entered another Upper Caves area 17289 | -5/Upper Caves | Learned location of 1 exit from Factory 17300 | -5/Upper Caves | Discovered new exit (range 7) 17375 | -5/Upper Caves | Discovered new exit (range 8) 17392 | -5/Upper Caves | Entered Warlord 17401 | -5/Warlord | System corruption cleaned by Quarantine Array 17494 | -5/Warlord | Found Prototype Device 17494 | -5/Warlord | Identified Minesniffer Drone Bay 17516 | -5/Warlord | Found Prototype Special Weapon 17516 | -5/Warlord | Identified RU-N14's Throwing Claymores v3 17554 | -5/Warlord | Found Prototype Device 17554 | -5/Warlord | Identified Exp. Phase Shifter 17569 | -5/Warlord | Found Prototype Processor 17569 | -5/Warlord | Identified Exp. Target Analyzer 17584 | -5/Warlord | Warlord's base attacked by MAIN.C 17608 | -5/Warlord | Found Prototype Energy Gun 17608 | -5/Warlord | Identified Vortex Rifle 17612 | -5/Warlord | Found Prototype Energy Gun 17612 | -5/Warlord | Identified Vortex Shotgun 17628 | -5/Warlord | Rebuked by Warlord 17658 | -5/Warlord | Found RU-N14's Throwing Claymores v3 17934 | -5/Warlord | Warlord forces counterattacked 17937 | -5/Warlord | Spotted Striker 17981 | -5/Warlord | Lost 3 allies 18067 | -5/Warlord | Lost 5 allies 18089 | -5/Warlord | Spotted Striker 18136 | -5/Warlord | Discovered new exit (range 8) 18138 | -5/Warlord | Entered Proximity Caves 18183 | -4/Proximity Caves | Learned location of Quarantine (-3) 18193 | -4/Proximity Caves | Identified exit to Factory 18196 | -4/Proximity Caves | Learned location of Armory (-3) 18239 | -4/Proximity Caves | Entered Factory 18239 | -4/Factory | Evolved 2 slots: Propulsion x2 18240 | -4/Factory | Identified exit to Research 18244 | -4/Factory | Identified exit to Upper Caves 18313 | -4/Factory | Spotted B-86 Titan 18422 | -4/Factory | Loaded intel: 8 recycling unit locations 18563 | -4/Factory | Build established: Sprinter 18580 | -4/Factory | Found Prototype Processor 18580 | -4/Factory | Identified Exp. Terrain Scan Processor 18594 | -4/Factory | Discovered exit to Research (range 21) 18641 | -4/Factory | Discovered exit to Research (range 13) 18739 | -4/Factory | First assault squad dispatched 18771 | -4/Factory | Cargo convoy interrupted 18771 | -4/Factory | Spotted Striker 18771 | -4/Factory | Entered Upper Caves 19056 | -4/Upper Caves | Found Alien Artifact 19060 | -4/Upper Caves | Discovered new exit (range 19) 19075 | -4/Upper Caves | Entered another Upper Caves area 19202 | -4/Upper Caves | Discovered new exit (range 9) 19251 | -4/Upper Caves | Entered Zhirov 19251 | -4/Zhirov | Discovered new exit (range 3) 19257 | -4/Zhirov | Met Zhirov 19262 | -4/Zhirov | Learned location of Testing (-2) 19262 | -4/Zhirov | Learned location of Command (-1) 19264 | -4/Zhirov | Zhirov requested help retrieving the SGEMP Prototype 19269 | -4/Zhirov | Found Alien Artifact 19269 | -4/Zhirov | Identified Integrated Reactor 19269 | -4/Zhirov | Installed Integrated Reactor, increased core energy generation (+10) 19330 | -4/Zhirov | Found Alien Artifact 19355 | -4/Zhirov | Entered Proximity Caves 19390 | -3/Proximity Caves | Spotted B-86 Titan 19561 | -3/Proximity Caves | Discovered exit to Research (range 9) 19566 | -3/Proximity Caves | Entered Research 19566 | -3/Research | Evolved 2 slots: Propulsion x2 19567 | -3/Research | Loaded intel: 119 machine locations 19597 | -3/Research | Allied Derelicts emerged from ambush trap array 19626 | -3/Research | Identified exit to DSF 19707 | -3/Research | Repaired Cld. Impulse Thruster 19887 | -3/Research | Spotted B-86 Titan 19946 | -3/Research | Spotted B-90 Cyclops 20028 | -3/Research | Discovered new exit (range 18) 20039 | -3/Research | Entered Quarantine 20360 | -3/Quarantine | System corruption reached 10% 20399 | -3/Quarantine | Identified Dimensional Node Initializer 20443 | -3/Quarantine | Found Alien Artifact 20460 | -3/Quarantine | Cryocooling Duct disabled 20475 | -3/Quarantine | Ambient heat levels rising (+20) 20475 | -3/Quarantine | Non-combat units ordered to evacuate 20488 | -3/Quarantine | Found Alien Reactor 20520 | -3/Quarantine | Identified Transdimensional Reconstructor 20539 | -3/Quarantine | Search patrols dispatched 20593 | -3/Quarantine | Found Alien Slashing Weapon 20593 | -3/Quarantine | Identified Sigix Broadsword 20617 | -3/Quarantine | Found Fusion Bomb Launcher 20730 | -3/Quarantine | Discovered new exit (range 3) 20731 | -3/Quarantine | Entered Research 20731 | -2/Research | Evolved 2 slots: Utility x2 20769 | -2/Research | Spotted B-90 Cyclops 20814 | -2/Research | Spotted B-90 Cyclops 20856 | -2/Research | Destroyed 10 combat bots 20885 | -2/Research | Spotted B-90 Cyclops 20899 | -2/Research | Identified exit to Testing 20937 | -2/Research | Entered Testing 20943 | -2/Testing | Lost 7 parts (3n2u2w) 20968 | -2/Testing | Self-destructed Last Messages --------------- 20955_ The unstable cave ceiling collapses. 20956_ Acquired Cld. Impulse Thruster. 20959_ U-05 Engineer lays Concrete. 20960_ Sneak attack on U-05 Engineer. 20960_ Destroyed Terrain Scanner. 20960_ Destroyed Terrain Scan Processor. 20960_ U-05 Engineer system corrupted by crushing effect. 20960_ ALERT: Construction progress impeded, dispatching reinforcements to local area. 20961_ U-05 Engineer system terminally corrupted. 20961_ Structural Scanner fried. 20961_ Unknown Engine fried. 20961_ Wheel fried. 20961_ U-05 Engineer builds a Wall. 20963_ U-05 Engineer lays Concrete. 20966_ Gravity Flail follow-up attack on S-43 Plague. 20966_ U-05 Engineer lays Concrete. 20967_ Field Propulsion Array destroyed. 20967_ U-05 Engineer builds a Wall. 20968_ U-05 Engineer lays Concrete. Map ----- +----------------------------------------------------+ | ???????????????????????????????????????????????? | | ???????????????????????????????????????????????? | | ???????????????????????????????????????????????? | | ???????????????????????????????????????????????? | | ???????????????????????????????????????????????? | | ???????????????????????????????????????????????? | | ???????????????????????????????????????????????? | | ???????????????????????????????????????????????? | | ???????????????????????????????????????????????? | | ??????????????##???????????????????????????????? | | ?????????????? ???????????????????????????????? | | ?????????????? ???????????????????????????????? | | ??????????????? ??????????????????????????? | | ??????????????? ??????????????????????????? | | ???????????????" """??????????????????????????? | | ???????????#???" """"??????????????????????????? | | ???????????# """ ??????????????????????????? | | ???????????# ??????????????????????????? | | ???????????# " " ??????????????????????????? | | ???????????? """""""??????????????????????????? | | ?????????????? ???????????????? ?? #?????? | | ???????????????? ?????????????? #?????? | | ????????##########; ############# #?????? | | ????????# s #?????? | | ????????# u #?????? | | ????????# [ @ s != #?????? | | ????????# %u = #?????? | | ????????# ## * ##########+##########??????? | | ?????????????# # #???????????????????????? | | ?????????????## #???????????????????????? | | ?????????????## ##???????????????????????? | | ?????????????# #????????????????????????? | | ?????????????# # #????????????????????????? | | ?????????????## ###????????????????????????? | | ??????????????## #??????????????????????????? | | ???????????????# #??????????????????????????? | | ???????????????# #??????????????????????????? | | ???????????????######??????????????????????????? | | ???????????????????????????????????????????????? | | ???????????????????????????????????????????????? | | ???????????????????????????????????????????????? | | ???????????????????????????????????????????????? | | ???????????????????????????????????????????????? | | ???????????????????????????????????????????????? | | ???????????????????????????????????????????????? | | ???????????????????????????????????????????????? | | ???????????????????????????????????????????????? | | ???????????????????????????????????????????????? | | ???????????????????????????????????????????????? | | ???????????????????????????????????????????????? | +----------------------------------------------------+ Best States ------------- Heat Dissipation 78 Energy Generation 33 Energy Capacity 330 Matter Stores 300 Matter Capacity 300 Sight Range 22 Terrain Scan Density 10 Cloak Strength 2 Power Amplification 30 Additional Mass Support 9 Armor Coverage 2675 Resistance: KI 30 Resistance: EM 20 Melee Speed Boost 30 Evasion (%) 65 Targeting Accuracy 8 Melee Accuracy 8 Launcher Accuracy 40 Target Analysis 10 Core Analysis 6 Recoil Reduction 4 Force Boost 40 Offensive Hacking 14 Defensive Hacking 24 Item Schematics ----------------- Huge Storage Unit | -10/Materials | Hacked Lgt. Treads | -10/Materials | Hacked Adv. Component Analysis Suite | -5/Factory | Hacked Imp. Cloaking Device | -5/Factory | Hacked Ovr. Barrage Gun | -5/Factory | Scanalyzed Adv. Force Booster | -5/Factory | Scanalyzed Assault Drone Bay | -4/Zhirov | Free Exp. Heat Sink | -4/Zhirov | Free Exp. Optical Array | -4/Zhirov | Free Imp. Arc Thrower | -4/Zhirov | Free Robot Schematics ------------------ M-13 Machinist | -10/Materials | Hacked Fabricated ------------ Dispersion Rifle | x2 | -5/Factory | Preloaded Repaired ---------- Lgt. Treads | 24% | -10/Materials Cld. Impulse Thruster | 23% | -3/Research Alien Tech Used ----------------- Integrated Reactor Sigix Broadsword Achievements -------------- None Challenges ------------ None Game ------ Seed FieldHeatCalibrator Manual? 0 Play Time 03:27:49 Cumulative 1031.6 hours Start 2025.07.08 @ 23:00:30 End 2025.07.09 @ 22:58:30 Sessions 5 Manual Loads 0 Difficulty Rogue Special Mode None Game No. 519 Rogue 519 Adventurer 0 Explorer 0 Win Type - Total 23 Types 10/4/3/0/1/1/2/2/0/0 Lore% 89 Gallery% 89 Achievement% 83 Wizard Run 0 Options --------- Layout 0 ASCII 0 Keyboard 0 Movement Numpad Keybinds 0 Fullscreen 2 Font 24/Smallcaps Map View 76x50 Zoom Use 0% Tactical HUD 1 Map Filters NONE Filters SHIFT_HUE(315) Steam 1 RUN: fbbde3ab-ef7b-45f2-b6ea-6b903d279b40